Cogmind - Beta 16 @@@ ROGUE MODE // 2026.02.04 @ 17:02:21 Player: axnj2 Result: Destroyed by IE-7AH(R) with Subdweller Machine Gun Performance ------------- Evolutions (0) 0 Regions Visited (2) 400 Robots Destroyed (14) 70 Value Destroyed (173) 173 Prototype IDs (0) 0 Alien Tech Used (0) 0 Bonus (0) 0 TOTAL SCORE: 643 Bonus ------- None Cogmind --------- Core Integrity 0/250 Matter 300/300 Energy 125/125 System Corruption 0% Temperature Cool (0) Movement Hovering (56) Location -10/Subcaves Parts ------- > --- POWER (1) -------- Light Ion Engine > --- PROPULSION (2) --- Hover Unit Hover Unit > --- UTILITY (2) ------ Small Storage Unit > --- WEAPON (2) ------- Ripper > --- INVENTORY (8) ---- Ion Engine Wheel Wheel Subdweller Monowheel Hover Unit Medium Laser Small Laser Subdweller Laser Peak State ------------ > --- POWER ------------ Light Ion Engine > --- PROPULSION ------- Hover Unit Hover Unit > --- UTILITY ---------- Small Storage Unit Seismic Detector > --- WEAPON ----------- Small Laser Ripper > --- INVENTORY -------- Ion Engine Wheel Wheel Subdweller Monowheel Hover Unit Medium Laser Subdweller Laser [Rating: 10] Favorites ----------- Power Light Ion Engine Engine Light Ion Engine Propulsion Hover Unit Wheel Wheel Hover Unit Hover Unit Utility Small Storage Unit Device Seismic Detector Storage Small Storage Unit Weapon Ripper Energy Gun Small Laser Ballistic Gun Light Assault Rifle Slashing Weapon Ripper Build | -11 -10 -10 ------- Run | Yrd Mat Sub Slots Evolved . | . . . Power . | . . . Propulsion . | . . . Utility . | . . . Weapon . | . . . Parts Attached 24 | 8 14 2 Power 3 | 1 2 . Engine 3 | 1 2 . Core . | . . . Reactor . | . . . Propulsion 11 | 2 9 . Treads . | . . . Leg . | . . . Wheel 3 | 2 1 . Hover 8 | . 8 . Flight . | . . . Utility 4 | 3 . 1 Device 3 | 2 . 1 Storage 1 | 1 . . Processor . | . . . Hackware . | . . . Protection . | . . . Artifact . | . . . Weapon 6 | 2 3 1 Energy Gun 3 | 1 2 . Energy Cannon . | . . . Ballistic Gun 2 | 1 1 . Ballistic Cannon . | . . . Launcher . | . . . Special Weapon . | . . . Impact Weapon . | . . . Slashing Weapon 1 | . . 1 Piercing Weapon . | . . . Special Melee Weapon . | . . . Unidentified Prototypes . | . . . Parts Lost 11 | . 10 1 Power 1 | . 1 . Propulsion 5 | . 5 . Utility 2 | . 1 1 Weapon 3 | . 3 . Highest Loss Streak 10 | . 10 1 To Critical Strikes . | . . . Average Backups 7 | 4 7 7 Power . | . . 1 Propulsion 3 | 2 4 3 Utility . | 1 2 . Weapon 1 | . . 2 Tool/Special . | . . . Unused Backups 12 | 2 1 9 Power 1 | . . 1 Propulsion 8 | 2 1 5 Utility 2 | . . 2 Weapon 1 | . . 1 Tool/Special . | . . . Average Slot Usage (%) 87 | . 82 88 Engine 13 | . 13 14 Wheel 1 | . 7 . Hover 25 | . 19 28 Device 11 | . 6 13 Storage 14 | . 14 14 Energy Gun 9 | . 14 8 Ballistic Gun 1 | . 7 . Slashing Weapon 7 | . . 9 Peak Build Rating 10 | 7 7 10 Average Rating 8 | 6 5 9 On Entrance 4 | . 7 6 Avg Prop Armor Cover (%) . | . . . Naked Turns . | . . . Heaviest Build 14 | 14 14 12 Greatest Support 20 | 20 20 12 Greatest Overweight (x) 2 | . 2 . Average Overweight (x) . | . . . Largest Inventory Capacity 8 | 8 8 8 Average Capacity 7 | 7 8 8 Most Carried 8 | 8 8 8 Average Carried 7 | 4 7 7 Final Capacity 8 | 8 8 8 Final Carried 8 | 8 8 8 Class Distribution -------------------- 100% | Mutant Dominant Class ---------------- Mutant | -10/Materials Mutant | -10/Subcaves Resources | -11 -10 -10 ----------- Run | Yrd Mat Sub Matter Collected 465 | 297 104 64 Remotely 123 | 110 13 . Salvage Created 342 | 171 141 30 Parts 34 | 18 14 2 Haulers Intercepted . | . . . Recyclers Shooed . | . . . Parts Field Recycled . | . . . Retrieved Matter . | . . . Parts Self-Destructed 2 | . . 2 Prevented . | . . . Parts Restored . | . . . Kills | -11 -10 -10 ------- Run | Yrd Mat Sub Combat Hostiles Destroyed 8 | . 7 1 Guns 8 | . 7 1 Classes Destroyed 6 | 3 2 1 Worker 2 | 2 . . Tunneler 3 | 3 . . Recycler 1 | 1 . . Swarmer 6 | . 6 . Grunt 1 | . 1 . Subdweller 1 | . . 1 Best Kill Streak 4 | 3 4 1 Combat Bots Only 4 | . 4 1 Max Kills in Single Turn 2 | 1 2 1 Gunslinging 1 | . 1 . Exploded . | . . . Melee . | . . . Uniques/NPCs Destroyed . | . . . Combat | -11 -10 -10 -------- Run | Yrd Mat Sub Hostile Shots Fired 132 | . 122 10 Missed 46 | . 43 3 Hits 86 | . 79 7 Projectile 86 | . 79 7 Damage Taken 974 | . 799 175 Core 260 | . 175 85 Absorbed by Shields . | . . . Core Remaining (%) 100 | 100 . . Volleys Fired 47 | 17 28 2 Largest 2 | 2 2 2 Hottest 90 | 60 60 90 Shots Fired 72 | 28 40 4 Gun 72 | 28 40 4 Cannon . | . . . Launcher . | . . . Special . | . . . Kinetic 45 | 17 28 . Thermal 4 | . . 4 Explosive . | . . . Electromagnetic 23 | 11 12 . Robot Hit Streak 6 | 6 3 6 Robot Miss Streak 7 | 3 7 . Penetration Max . | . . . Secondary Targets 1 | . 1 . Max Gunslinging Chain 1 | . 1 . Shots Hit Robots 36 | 16 16 4 Core Hits 20 | 9 10 1 Critical Kills . | . . . Critical Parts Destroyed . | . . . Critical Strikes . | . . . Melee Attacks . | . . . Impact . | . . . Slashing . | . . . Piercing . | . . . Sneak Attacks . | . . . Combat Hostiles . | . . . Follow-up Attacks . | . . . Damage Inflicted 427 | 196 182 49 Guns 380 | 149 182 49 Cannons . | . . . Explosions 47 | 47 . . Melee . | . . . Ramming . | . . . Kinetic 174 | 79 95 . Thermal 96 | 47 . 49 Explosive . | . . . Electromagnetic 157 | 70 87 . Impact . | . . . Slashing . | . . . Piercing . | . . . Highest Corruption . | . . . Average Corruption . | . . . Corruption Purged . | . . . Corruption Blocked . | . . . Overload Shots . | . . . Overflow Damage . | . . . Projectiles . | . . . Explosions . | . . . Melee . | . . . Knockbacks . | . . . Impact . | . . . Kinetic . | . . . Secondary . | . . . Self-Inflicted Damage . | . . . Shots . | . . . Rammed . | . . . Targets Rammed . | . . . Kicked . | . . . Crushed . | . . . Highest Temperature 40 | 40 40 . Average Temperature 15 | 20 12 . Received Heat Transfer 246 | . 219 27 Siege Activations . | . . . Martial Activations . | . . . Shielding Activations . | . . . Robots Disrupted . | . . . Combat Hostiles . | . . . Robots Corrupted . | . . . Combat Hostiles . | . . . Parts Fried . | . . . Impact Corruptions . | . . . Robots Melted . | . . . Combat Hostiles . | . . . Parts Melted 1 | . . 1 Heat Transferred 174 | 50 . 124 Parts Sabotaged . | . . . Parts Stolen . | . . . Parts Stripped . | . . . Power Chain Reactions 1 | 1 . . Alert | -11 -10 -10 ------- Run | Yrd Mat Sub Maximum Alert Level . | . . . Low Security (%) 100 | 100 100 . Level 1 . | . . . Level 2 . | . . . Level 3 . | . . . Level 4 . | . . . Level 5 . | . . . High Security . | . . . Max Security . | . . . Peak Influence 75 | 10 75 . Initial . | . . . Average 19 | 1 29 . Influence Increases 280 | 30 250 . Destroy 0b10 Robot/C 140 | . 140 . Destroy 0b10 Robot/NC 30 | 30 . . Destroy Leader 20 | . 20 . Disable Machine 15 | . 15 . Partial Spotted 15 | . 15 . Lose Combat Pursuer 60 | . 60 . Influence Decreases 280 | 30 235 15 Entered New Map 8 | . . 8 Time Decay 172 | 30 135 7 Lost Part 100 | . 100 . Squads Dispatched 1 | . 1 . Investigation . | . . . Extermination . | . . . Reinforcement 1 | . 1 . Assault . | . . . Garrison . | . . . Intercept . | . . . Searches Triggered . | . . . Construction Impeded . | . . . Haulers Reinforced . | . . . Active Scanning Responses . | . . . Cargo Convoy Interrupts . | . . . Stealth | -11 -10 -10 --------- Run | Yrd Mat Sub Distress Signals 2 | . 2 . Communications Jammed . | . . . Distress Signals . | . . . Times Spotted 25 | . 16 9 Peak Tracking Total 7 | . 7 3 Tactical Retreats 2 | . 2 . Traps | -11 -10 -10 ------- Run | Yrd Mat Sub Traps Triggered 2 | . 1 1 Indirectly . | . . . Trap Hack Attempts . | . . . Triggered . | . . . Disarmed . | . . . Reprogrammed . | . . . Reused . | . . . Traps Extracted . | . . . Installed . | . . . Triggered . | . . . Machines | -11 -10 -10 ---------- Run | Yrd Mat Sub Machines Disabled 1 | . 1 . Max in Single Turn 1 | . 1 . Machines Repaired . | . . . Machines Dismantled . | . . . Machines Sabotaged . | . . . Overloaded Fab Kills . | . . . Hacking | -11 -10 -10 --------- Run | Yrd Mat Sub Machines Accessed 2 | . 1 1 Terminals 1 | . 1 . Fabricators . | . . . Repair Stations . | . . . Recycling Units . | . . . Scanalyzers . | . . . Garrison Access . | . . . Total Hacks 8 | . 4 4 Successful 7 | . 3 4 Failed 1 | . 1 . Catastrophic . | . . . Database Lockouts . | . . . Manual 2 | . . 2 Terminals 4 | . 4 . Fabricators . | . . . Repair Stations . | . . . Recycling Units . | . . . Scanalyzers . | . . . Garrison Access . | . . . Terminal Hacks 7 | . 3 4 Record 5 | . 1 4 Investigation Status 1 | . 1 . Reinforcement Status 1 | . 1 . Fabricator Hacks . | . . . Repair Station Hacks . | . . . Recycling Unit Hacks . | . . . Scanalyzer . | . . . Garrison Access Hacks . | . . . Unauthorized Hacks . | . . . Terminals . | . . . Fabricators . | . . . Repair Stations . | . . . Recycling Units . | . . . Scanalyzers . | . . . Garrison Access . | . . . Data Cores Recovered . | . . . Used . | . . . Hacking Detections 1 | . 1 . Full Trace Events 1 | . 1 . Feedback Events . | . . . Feedback Blocked . | . . . Robot Schematics Acquired . | . . . Robots Built . | . . . Authchips . | . . . Time . | . . . Total Robot Build Rating . | . . . Part Schematics Acquired . | . . . Parts Built . | . . . Authchips . | . . . Time . | . . . Total Part Build Rating . | . . . Part Studies Acquired . | . . . Parts Repaired . | . . . Time . | . . . Parts Recycled . | . . . Recycled Matter . | . . . Retrieved Matter . | . . . Retrieved Components . | . . . Parts Scanalyzed . | . . . Part Schematics Acquired . | . . . Parts Damaged . | . . . Bothacking | -11 -10 -10 ------------ Run | Yrd Mat Sub Used RIF Installer . | . . . Robots Hacked . | . . . Non-combat . | . . . Combat . | . . . Robot Hacks Applied . | . . . Relay Couplers Released . | . . . Fabnet Peak Effective % . | . . . Robots Rewired . | . . . Allies Hacked . | . . . Hacks Repelled . | . . . Allies | -11 -10 -10 -------- Run | Yrd Mat Sub Total Allies . | . . . Largest Group . | . . . Highest-Rated Group . | . . . Highest-Rated Ally . | . . . Total Orders . | . . . Ally Attacks . | . . . Total Damage . | . . . Kills . | . . . Allies Corrupted . | . . . Allies Melted . | . . . Intel | -11 -10 -10 ------- Run | Yrd Mat Sub Active Infowar (turns) 1166 | 107 101 958 Seismic 1166 | 107 101 958 Robot Analysis Total . | . . . Derelict Logs Recovered 1 | . . 1 Drone Launches . | . . . Drone Recoveries . | . . . Exploration | -11 -10 -10 ------------- Run | Yrd Mat Sub Turns Passed 1440 | 170 290 980 Spaces Moved 1344 | 131 284 929 Core 5 | 3 2 . Treads . | . . . Legs . | . . . Wheels 185 | 128 57 . Hover 1154 | . 225 929 Flight . | . . . Fastest Speed 50 | 50 56 56 Average Speed 60 | 79 66 56 Slowest Speed 185 | 80 185 56 Overloaded Moves . | . . . Propulsion Burnouts . | . . . Robots Hopped . | . . . Potential Cave-ins . | . . . Cave-ins Triggered . | . . . Exploration Rate (%) 34 | 7 41 55 Regions Visited 2 Branch Regions 1 Pre-discovered Areas 2 | . . 2 Known Exits Taken . | . . . Unknown Exits Taken 2 | 1 1 . Scrap Searched . | . . . Spaces Dug . | . . . Terrain Destroyed 3 | 3 . . Melee . | . . . Projectile . | . . . AOE 3 | 3 . . Terrain Rammed . | . . . Walls Destroyed . | . . . Machines Disabled . | . . . Actions | -11 -10 -10 --------- Run | Yrd Mat Sub Total 1901 | 171 346 1384 Wait 448 | 1 5 442 Move 1342 | 130 283 929 Hop . | . . . Pick Up 19 | 11 4 4 Fast Attach 17 | 7 10 . Attach 5 | 1 3 1 Detach 3 | 1 1 1 Swap 5 | . 4 1 Drop 15 | 3 8 4 Fire 47 | 17 28 2 Melee . | . . . Ram . | . . . Kick . | . . . Crush . | . . . Escape Stasis . | . . . Rewire . | . . . Trap . | . . . Miscellaneous . | . . . Route ------- -11/Scrapyard -10/Materials (discovered 2 exits: [*Min] / *Sub) -10/Subcaves (discovered 2 exits: [*Mat] / Rec) History --------- Turn | Location | Event 37 | -11/Scrapyard | Discovered new exit (range 16) 171 | -11/Scrapyard | Entered Materials 247 | -10/Materials | Discovered new exit (range 8) 331 | -10/Materials | Core integrity fell below 50% 332 | -10/Materials | Build established: Mutant 394 | -10/Materials | Lost 10 parts (1p5n1u3w) 459 | -10/Materials | Discovered new exit (range 6) 461 | -10/Materials | Entered Subcaves 462 | -10/Subcaves | Approached by a straggling Scientist 493 | -10/Subcaves | Disturbed a concealed Subdweller 533 | -10/Subcaves | Shifting Twisted Machinery released Spk. Treads 538 | -10/Subcaves | Discovered new exit (range 12) 539 | -10/Subcaves | Shifting Twisted Machinery released Sub. Laser 549 | -10/Subcaves | Identified exit to Recycling 581 | -10/Subcaves | Ambushed by swarm of Subdwellers 775 | -10/Subcaves | A swath of the cavern ceiling suddenly collapsed 1106 | -10/Subcaves | Visited Clippyterm 1113 | -10/Subcaves | Learned location of Section 7 (-2) 1113 | -10/Subcaves | Learned Factory garrison access intel 1159 | -10/Subcaves | Learned location of Zion (-6) 1159 | -10/Subcaves | Met a Zionite searching for "candidates" 1182 | -10/Subcaves | Core integrity fell below 20% 1226 | -10/Subcaves | Shifting Twisted Machinery released Battle Rifle 1296 | -10/Subcaves | Shifting Twisted Machinery released Sub. Machine Gun 1361 | -10/Subcaves | Shifting Twisted Machinery released Sub. Machine Gun 1441 | -10/Subcaves | Destroyed by IE-7AH(R) with Subdweller Machine Gun Last Messages --------------- World map updated: -2/Section 7. >>Record! "Tag" It looks like you don't want to be "it," would you like help? Data stored: Factory garrison access intel. >>Record! "01-MTF" It looks like you're after the notorious thief from 0b1. I don't know where they are, but my data indicates that someone they're looking for is frequently seen in Scraptown. Z7-2DX(z): "Hey you! It's really dangerous down here, I feel that you could die at any moment. For your health and safety might I suggest a trip to Zion?" World map updated: -6/Zion. Battle Rifle falls loose from the Twisted Machinery. Sub. Machine Gun falls loose from the Twisted Machinery. Seismic Detector destroyed. Map ----- +----------------------------------------------------+ | #??????????????#"$## ###" #??#### | | #??????????????# $### ### " "" #??# | | ##??????????????# ## # # #?## """#??## | | ##???????????????#&# &! # #?## ## ="#??## | | #????????????????# [ ##" # ### ### #??# | | #????????????????######## ## ## ##?## | | ##???????????????????### ### ### #?# | | #???????????????????# ######## ### #?## | | #???????????????????## # ### ## ### | | #?????????????????????## "" "" | | #??????????????????????# "" ! " | | ##??????????????????????## ## # ## ##### ! | | #??????????????????????#############???## # | | #???????????????????????????????????????#### ## | | #??????????????????????????????????????????####? | | ###??????????????????????????????????????????????? | | ?????????????????????????????????????????????????? | | ?????????????????????????????????????????????????? | | ?????????????????????????????????????????????????? | | ?????????????????????????????????????????????????? | | ???????????????????####??????????????????????????? | | ??????????????????## ####???????????????????????? | | ?????????????????## ####????????????????????? | | ????????????????## ##???????????????????? | | ????????????????# #???????????????????? | | ?????????????????# @ #????????????????????? | | ?????????????????# R ###????????????????????? | | ?????????????????# R #??????????????????????? | | ?????????????????## ## ##?????????????????????? | | ?????????????????## ### #?????????????????????? | | ????????????????## #?## #?????????????????????? | | ?????????######## #??####?????????????????????? | | ????????## ## #???????????????????????????? | | ????????# #???????????????????????????? | | ###?????## #???????????????????????????? | | ##????# # #???????????????????????????? | | ###?## ## #???????????????????????????? | | ### # ## ??????????????????????? | | # #### ?????????????????????? | | ## #####???# ?????????????????????? | | ##### #### #???????? ?????????????????????? | | # ####??## #??????? ?????????????????????? | | #?????? ##???????## ?????????????????????? | | #?????? ??????????# ?????????????????????? | | # ##?????? ##?????????? ??????????????????????? | | ####??????? #????????????????????????????????????? | | ??????????? #????????????????????????????????????? | | ??????????? #????????????????????????????????????? | | ?????????????????????????????????????????????????? | | #????????????????????????????????????????????????? | +----------------------------------------------------+ Best States ------------- Heat Dissipation 25 Energy Generation 10 Energy Capacity 250 Matter Stores 300 Matter Capacity 300 Sight Range 16 Terrain Scan Density 10 Evasion (%) 53 Item Schematics ----------------- None Robot Schematics ------------------ None Fabricated ------------ Nothing Repaired ---------- Nothing Studied --------- None Alien Tech Used ----------------- None Achievements -------------- Ghost 'Em Use The Force Challenges ------------ None Game ------ Seed AccelerationStormRefractor Manual? 0 Play Time 00:32:13 Cumulative 4.9 hours Start 2026.02.04 @ 16:17:17 End 2026.02.04 @ 17:02:21 Sessions 1 Manual Loads 0 Difficulty Rogue Special Mode None Game No. 4 Rogue 4 Adventurer 0 Explorer 0 Win Type - Total 0 Types 0/0/0/0/0/0/0/0/0/0 Lore% 2 Gallery% 6 Achievement% 7 Wizard Run 0 Options --------- Layout 1 ASCII 0 Keyboard 0 Movement Mouse Keybinds 0 Fullscreen 1 Font 32/Tamsyn Map View 50x40 Zoom Use 0% Tactical HUD 0 Map Filters NONE Filters NONE Steam 1 RUN: d065ee9f-8680-4423-9f0f-4490d5ced82c